bitfinex-derivatives/quotes_ETHF0:USTF0_20251031
["timestamp","ask_amount","ask_price","bid_price","bid_amount"]
[1761904459352,1.44178278,3843.2,3843.1,0.7773]
[1761904459549,1.44178278,3843.2,3842.0,0.1422]
[1761904459550,0.5583,3842.8,3842.7,0.3521]
[1761904459755,0.7757,3842.7,3842.6,0.5737]
[1761904460053,0.2174,3842.2,3842.1,0.8075]
[1761904460247,0.7757,3842.6,3842.5,0.5737]
[1761904460448,1.3558074,3842.6,3842.5,0.5737]
[1761904461554,0.2174,3842.1,3842.0,0.5976]
[1761904462155,0.2174,3842.1,3842.0,0.9497]
[1761904463750,0.5605,3842.1,3842.0,0.9497]
[1761904464357,0.2174,3842.1,3842.0,0.9497]
[1761904465951,0.5605,3842.8,3842.7,0.4554]
[1761904466157,0.87959617,3842.8,3842.7,0.8075]
[1761904466358,1.22269617,3842.8,3842.7,0.8075]
[1761904466549,0.87959617,3842.8,3842.7,0.8075]
[1761904468260,0.66219617,3842.8,3842.7,0.8075]
[1761904470163,0.87959617,3842.8,3842.7,0.8075]
[1761904470463,1.43789617,3842.8,3842.7,0.8075]
[1761904472366,1.09479617,3842.8,3842.7,0.8075]
[1761904474866,0.87959617,3842.8,3842.7,0.8075]
[1761904477069,1.43789617,3842.8,3842.7,0.8075]
[1761904480660,1.43789617,3842.8,3842.7,0.5737]
[1761904480861,1.43789617,3842.8,3842.1,0.3484]
[1761904480862,0.335,3842.7,3842.1,0.3484]
[1761904481061,1.10899617,3842.6,3842.5,0.5712]
[1761904481456,1.10899617,3842.6,3842.5,0.7898]
[1761904481659,1.44399617,3842.6,3842.5,0.7898]
[1761904484567,0.2218,3842.1,3842.0,0.5836]
[1761904485168,0.2218,3842.1,3842.0,0.932]
[1761904486368,0.5568,3842.1,3842.0,0.932]
[1761904487066,0.7818,3842.1,3842.0,0.932]
[1761904487766,1.36468659,3842.1,3842.0,0.932]
[1761904488368,1.36468659,3842.1,3842.0,0.7898]
[1761904488765,1.36468659,3842.1,3842.0,0.9252]
[1761904489657,0.80468659,3842.1,3842.0,0.9252]
[1761904489967,0.58288659,3842.1,3842.0,0.9252]
[1761904490870,0.80468659,3842.1,3842.0,0.9252]
[1761904491664,0.58288659,3842.1,3842.0,0.9252]
[1761904493171,0.80468659,3842.1,3842.0,0.9252]
[1761904496072,0.7818,3842.4,3842.3,0.7898]
[1761904496273,1.44613599,3842.4,3842.3,0.7898]
[1761904496767,0.66433599,3842.4,3842.3,0.7898]
[1761904497470,0.88487627,3842.4,3842.3,0.7898]
[1761904497668,1.44487627,3842.4,3842.3,0.7898]
[1761904499171,1.10987627,3842.4,3842.3,0.7898]
[1761904499474,0.66307627,3842.4,3842.3,0.7898]
[1761904504280,0.58168764,3842.4,3842.3,0.7898]
[1761904505879,0.7818,3842.9,3842.8,0.5712]
[1761904506083,1.44470849,3842.9,3842.8,0.5712]
[1761904507082,0.88470849,3842.9,3842.8,0.7898]
[1761904508570,0.00309263,3843.2,3843.1,1.11774]
[1761904508985,0.00309263,3843.2,3843.1,0.7898]
[1761904513177,0.22439263,3843.2,3843.1,0.7898]
[1761904513583,0.55809263,3843.2,3843.1,0.7898]
[1761904516581,0.78469263,3843.2,3843.1,0.7898]
[1761904516888,0.7816,3843.0,3842.9,0.5804]
[1761904517280,0.7816,3843.0,3842.9,0.8088]
[1761904521686,0.7816,3843.0,3842.9,0.5804]
[1761904521886,0.4494,3842.7,3842.6,0.5744]
[1761904522187,0.792,3842.7,3842.6,0.5744]
[1761904522888,0.792,3842.7,3842.6,0.7961]
[1761904531288,0.792,3842.7,3842.6,0.5744]
[1761904531492,0.792,3842.3,3842.2,0.78572]
[1761904531892,0.792,3842.3,3842.2,1.12412]
[1761904532095,0.792,3842.3,3842.2,0.7961]
[1761904535601,0.4494,3842.3,3842.2,0.7961]
[1761904535997,0.2232,3842.3,3842.2,0.7961]
[1761904539315,0.5688,3842.9,3842.8,0.5744]
[1761904539514,0.792,3842.6,3842.5,0.236]
[1761904539719,1.36608439,3842.6,3842.5,0.4577]
[1761904540216,1.36608439,3842.6,3842.5,0.7961]
[1761904540514,1.36608439,3842.6,3842.5,0.5744]
[1761904542119,1.36608439,3842.6,3842.5,0.90239]
[1761904542316,0.78339263,3843.2,3843.1,0.7879]
[1761904542614,0.5467,3842.7,3842.6,0.7879]
[1761904542810,0.7803,3842.7,3842.6,0.7879]
[1761904544406,0.86167998,3842.7,3842.6,0.7879]
[1761904544813,0.86167998,3842.7,3842.0,0.1354]
[1761904545015,0.2148,3842.1,3842.0,0.91054]
[1761904545616,0.2148,3842.1,3842.0,1.25134]
[1761904546305,0.5467,3842.1,3842.0,1.25134]
[1761904546511,0.7803,3842.1,3842.0,1.25134]
[1761904546718,0.7803,3842.1,3842.0,0.3408]
[1761904546919,0.7803,3842.1,3842.0,0.5722]
[1761904547110,0.7803,3842.1,3842.0,0.9301]
[1761904552619,0.7803,3842.1,3842.0,0.7879]
[1761904555623,0.7803,3842.1,3842.0,0.9301]
[1761904557319,0.5467,3842.5,3842.4,0.2314]
[1761904557526,0.8616908,3842.5,3842.4,0.7879]
[1761904557727,1.433454,3842.5,3842.4,0.7879]
[1761904561024,1.433454,3842.5,3842.4,1.1159]
[1761904561234,1.101554,3842.5,3842.4,1.1159]
[1761904561425,1.433454,3842.5,3842.4,0.7879]
[1761904561821,1.564054,3842.5,3842.4,0.5722]
[1761904562223,1.433454,3842.5,3842.4,0.5722]
[1761904562517,1.433454,3842.5,3842.4,0.7879]
[1761904568336,0.867954,3842.5,3842.4,0.7879]
[1761904569341,1.199854,3842.5,3842.4,0.7879]
[1761904569531,1.433454,3842.5,3842.4,0.7879]
[1761904570031,1.564054,3842.5,3842.4,0.5722]
[1761904570839,1.564054,3842.5,3842.4,0.3408]
[1761904571040,0.8141,3842.1,3842.0,0.78944]
[1761904571333,0.8141,3842.1,3842.0,0.4614]
[1761904571535,0.8141,3842.1,3842.0,0.7964]
[1761904571841,0.8141,3841.7,3841.6,0.4614]
[1761904572132,0.8141,3841.7,3841.6,0.7964]
[1761904572529,0.8141,3841.7,3841.6,1.12447]
[1761904573034,0.8141,3841.7,3841.6,0.7964]
[1761904574235,0.2374,3842.5,3842.3,0.335]
[1761904574442,0.89065831,3842.4,3842.3,0.7964]
[1761904575141,1.23865831,3842.4,3842.3,0.7964]
[1761904575638,0.65325831,3842.4,3842.3,0.7964]
[1761904578439,0.5635,3843.0,3842.9,0.4562]
[1761904578739,0.00309263,3843.2,3843.1,1.13494]
[1761904579345,0.57451621,3843.2,3843.1,1.13494]
[1761904579948,0.00309263,3843.2,3843.1,1.13494]
[1761904582642,0.21979263,3843.2,3843.1,1.13494]
[1761904582843,0.00309263,3843.2,3843.1,1.13494]
[1761904593154,0.00220841,3843.2,3843.1,1.13494]
[1761904603557,0.5489,3844.1,3844.0,0.4416]
[1761904603864,0.5489,3844.1,3844.0,0.9128]
[1761904603865,1.4227893,3844.1,3844.0,0.9128]
[1761904604056,1.4227893,3844.1,3844.0,0.7801]
[1761904604457,1.4227893,3844.1,3844.0,0.9128]
[1761904604758,1.4253532,3844.1,3844.0,0.91496928]
[1761904604957,1.4253532,3844.1,3844.0,0.78226928]
[1761904607764,1.4253532,3844.1,3844.0,0.91496928]
[1761904613768,1.4253532,3844.1,3844.0,0.78226928]
[1761904613973,1.4253532,3844.1,3844.0,0.00216928]
[1761904615073,1.4253517,3844.1,3844.0,0.00216928]
[1761904617975,0.7713,3843.4,3843.3,0.565]
[1761904618275,1.42279659,3843.4,3843.3,0.565]
[1761904618864,1.42279659,3843.4,3843.3,0.56795002]
[1761904621777,1.42279659,3843.4,3843.3,0.00295002]
[1761904622472,1.42279659,3843.4,3843.3,0.34145002]
[1761904622676,1.42279659,3843.4,3843.3,0.56795002]
[1761904623677,1.42279954,3843.4,3843.3,0.56795002]
[1761904624076,1.42279954,3843.4,3843.3,0.34145002]
[1761904624275,1.42279954,3843.4,3843.3,0.00295002]
[1761904627083,1.42279954,3843.4,3843.3,0.34145002]
[1761904627780,1.42279954,3843.4,3843.3,0.00295002]
[1761904637176,1.42280323,3843.4,3843.3,0.00295002]
[1761904639486,0.7987,3842.6,3842.5,0.3533]
[1761904639985,0.7987,3842.6,3842.5,0.5786]
[1761904640386,0.7987,3842.6,3842.5,0.58042752]
[1761904640785,0.7987,3842.6,3842.5,0.80322752]
[1761904641980,0.7987,3842.6,3842.5,0.93552752]
[1761904642990,0.7987,3842.9,3842.8,0.5761]
[1761904643291,1.45032551,3842.9,3842.8,0.8014]
[1761904645096,1.45032551,3842.9,3842.8,0.5786]
[1761904646291,0.7987,3842.7,3842.6,0.55329]
[1761904646496,1.36894543,3842.7,3842.6,0.77609]
[1761904646993,1.36894543,3842.7,3842.6,1.12939]
[1761904651796,0.2271,3842.7,3842.6,1.12939]
[1761904652296,0.5803,3842.9,3842.8,1.12937]
[1761904652496,1.45080381,3842.9,3842.8,1.12937]
[1761904652692,1.45080381,3842.9,3842.8,0.8014]
[1761904652899,1.45080381,3842.9,3842.8,0.5786]
[1761904654401,1.45080381,3842.9,3842.8,0.3533]
[1761904654601,0.7987,3842.7,3842.6,0.68129]
[1761904654908,1.36942608,3842.7,3842.6,1.12939]
[1761904655288,1.36942608,3842.7,3842.6,21.12939]
[1761904655492,1.01622608,3842.7,3842.6,21.12939]
[1761904655998,0.5803,3842.9,3842.8,1.12937]
[1761904656300,1.45093443,3842.9,3842.8,0.8014]
[1761904657901,0.87933443,3842.9,3842.8,0.8014]
[1761904658104,0.65223443,3842.9,3842.8,0.8014]
[1761904658399,0.2271,3843.6,3843.5,1.26161]
[1761904658708,0.66167064,3843.6,3843.5,0.9337]
[1761904659704,0.88007064,3843.6,3843.5,0.9337]
[1761904660297,0.88007064,3843.6,3843.5,0.8014]
[1761904660998,0.88007064,3843.6,3843.5,0.5786]
[1761904662091,0.2271,3843.6,3843.5,1.27861]
[1761904662292,0.2351,3843.8,3843.7,1.13749]
[1761904662491,0.8127,3844.0,3843.9,0.8096]
[1761904662692,0.89406079,3844.0,3843.9,0.8096]
[1761904662893,0.89406079,3844.0,3843.9,0.5717]
[1761904663611,1.03656079,3844.0,3843.9,0.5717]
[1761904664999,0.2351,3843.7,3843.6,0.3279]
[1761904665205,0.8127,3843.7,3843.6,0.7939]
[1761904665607,0.8127,3843.7,3843.6,1.1375]
[1761904666609,0.4665,3843.7,3843.6,1.1375]
[1761904667200,1.53544839,3844.5,3843.5,0.1342]
[1761904667201,0.5838639,3844.1,3844.0,0.1342]
[1761904667406,0.31902491,3844.1,3844.0,0.9438]
[1761904667606,0.89662491,3844.1,3844.0,0.8096]
[1761904667802,0.8152639,3844.1,3844.0,0.3436]
[1761904670106,0.8152639,3844.1,3844.0,0.5717]
[1761904670308,1.38328836,3844.1,3844.0,0.5717]
[1761904671401,0.8152639,3844.1,3844.0,0.5717]
[1761904672105,0.8152639,3844.1,3844.0,0.8096]
[1761904672709,0.8152639,3844.1,3844.0,0.9438]
[1761904673814,0.2376639,3844.1,3844.0,0.9438]
[1761904675615,0.5838639,3844.1,3844.0,0.9438]
[1761904675810,0.8152639,3844.1,3844.0,0.9438]
[1761904676513,0.8152639,3844.1,3844.0,0.8096]
[1761904679511,0.8152639,3844.1,3844.0,1.13747]
[1761904679813,0.4690639,3844.1,3844.0,1.27167]
[1761904680410,0.2376639,3844.1,3844.0,1.27167]
[1761904680610,0.0025639,3844.1,3844.0,1.27167]
[1761904682313,0.0025639,3844.1,3844.0,1.47422715]
[1761904682509,0.135,3845.5,3844.9,0.32779]
[1761904682709,0.4665,3845.5,3845.4,0.466]
[1761904682911,0.54782667,3845.5,3845.4,0.466]
[1761904683115,1.37636874,3845.5,3845.4,0.8096]
[1761904683419,0.81570726,3845.5,3845.4,0.81220977]
[1761904684307,0.00300726,3845.5,3845.4,0.81220977]
[1761904684706,3.4695,3846.5,3845.4,0.81220977]
[1761904684707,0.2351,3846.2,3846.1,0.8096]
[1761904684923,0.66261648,3846.2,3846.1,0.8096]
[1761904685121,1.37592213,3846.2,3846.1,0.8096]
[1761904685419,1.37558668,3846.2,3846.1,0.8096]
[1761904685922,1.37741367,3846.2,3846.1,0.8096]
[1761904686218,0.81452699,3846.2,3846.1,0.8096]
[1761904691316,0.81452699,3846.2,3846.1,0.5717]
[1761904691511,0.7986,3845.9,3845.8,0.77981]
[1761904692124,0.7986,3845.9,3845.8,1.12281]
[1761904692325,0.80042699,3846.2,3846.1,0.7951]
[1761904692627,0.80042699,3846.2,3846.1,0.58]
[1761904694217,0.80042699,3846.2,3846.1,0.343]
[1761904694424,0.2268,3845.7,3845.6,0.77983]
[1761904695027,0.2268,3845.7,3845.6,1.12283]
[1761904698321,0.8029,3845.7,3845.6,1.12283]
[1761904699726,0.5827,3846.1,3846.0,0.5419]
[1761904699932,0.8004,3846.1,3846.0,0.7703]
[1761904700330,0.88171584,3846.1,3846.0,0.7703]
[1761904701334,0.88171584,3846.1,3846.0,0.5509]
[1761904702330,0.88171584,3846.1,3846.0,0.3225]
[1761904702630,0.5827,3845.7,3845.6,0.77553]
[1761904703024,0.2336,3845.7,3845.6,0.77553]
[1761904703230,0.2336,3845.7,3845.6,1.09803]
[1761904703426,0.8004,3846.0,3845.9,0.7703]
[1761904703628,0.88171606,3846.0,3845.9,0.7703]
[1761904704630,0.8004,3846.0,3845.9,0.7703]
[1761904705230,0.8004,3846.0,3845.9,0.5509]
[1761904705435,0.8004,3846.0,3845.6,0.4478]
[1761904705436,0.4513,3845.7,3845.6,0.4478]
[1761904705726,0.3491,3846.0,3845.6,0.4478]
[1761904705932,0.5827,3846.0,3845.9,0.4478]
[1761904706129,1.22700615,3846.0,3845.9,0.7703]
[1761904706437,1.44470615,3846.0,3845.9,0.7703]
[1761904708034,1.58630615,3846.0,3845.9,0.3225]
[1761904708730,0.8004,3845.6,3845.5,0.90974]
[1761904709235,0.8004,3845.6,3845.5,1.23224]
[1761904710338,0.2336,3845.6,3845.5,1.23224]
[1761904710529,0.5827,3845.9,3845.8,0.7703]
[1761904710730,1.44601819,3845.9,3845.8,0.7703]
[1761904711032,1.44601819,3845.9,3845.8,0.5509]
[1761904712037,0.8004,3845.6,3845.5,0.69033]
[1761904712237,1.44601819,3845.6,3845.5,0.69033]
[1761904715041,1.44601819,3845.6,3845.5,0.9118]
[1761904715242,1.44739109,3845.6,3845.5,0.9118]
[1761904715544,0.88059109,3845.6,3845.5,0.9118]
[1761904715739,0.64699109,3845.6,3845.5,0.9118]
[1761904719140,0.88059109,3845.6,3845.5,0.9118]
[1761904719336,1.44739109,3845.6,3845.5,0.7703]
[1761904721047,1.44739109,3845.6,3845.5,0.9041]
[1761904721545,1.09829109,3845.6,3845.5,0.9041]
[1761904721748,0.88059109,3845.6,3845.5,0.9041]
[1761904725758,1.23839109,3845.6,3845.5,0.9041]
[1761904726258,1.23839197,3845.6,3845.5,0.9041]
[1761904730370,0.88059197,3845.6,3845.5,0.9041]
[1761904730568,0.64699197,3845.6,3845.5,0.9041]
[1761904740164,0.3578,3845.9,3845.8,0.2329]
[1761904740358,0.23252699,3846.2,3846.1,0.56059]
[1761904740564,0.59032699,3846.2,3846.1,0.8091]
[1761904740860,0.81272699,3846.2,3846.1,0.8091]
[1761904744669,0.81272699,3846.2,3845.6,0.2329]
[1761904744670,0.8109,3845.7,3845.6,0.2329]
[1761904744973,0.9494,3845.5,3845.4,1.40673165]
[1761904745178,0.9494,3845.5,3845.4,0.00260977]
[1761904748773,0.8109,3845.1,3845.0,19.89739022]
[1761904749071,0.8109,3845.1,3845.0,18.87780723]
[1761904749864,0.8109,3845.1,3845.0,18.88098669]
[1761904752474,1.4539148,3845.1,3845.0,18.88098669]
[1761904753968,0.79237109,3845.1,3845.0,19.80798669]
[1761904754179,1.12337109,3845.1,3845.0,19.80798669]
[1761904754973,0.2307,3845.1,3845.0,19.80798669]
[1761904756180,0.5617,3845.1,3845.0,19.80798669]
[1761904756577,0.7881,3845.1,3845.0,19.80798669]
[1761904759179,1.34952924,3845.1,3845.0,18.88098669]
[1761904759377,1.43086703,3845.1,3845.0,18.88098669]
[1761904760579,1.43086703,3845.1,3845.0,19.44618669]
[1761904760769,1.43086703,3845.1,3845.0,19.68188669]
[1761904760770,1.34952924,3845.1,3845.0,19.68188669]
[1761904761178,1.34952924,3845.1,3845.0,18.88098669]
[1761904764276,0.3406,3845.8,3845.7,0.2357]
[1761904764484,0.88023603,3845.8,3845.7,0.4723]
[1761904764781,1.44159196,3845.8,3845.7,0.4723]
[1761904764975,1.44159196,3845.8,3845.7,0.8009]
[1761904769077,0.88023603,3845.8,3845.7,0.8009]
[1761904769378,1.44371855,3845.8,3845.7,0.8009]
[1761904769577,0.5756,3845.3,3845.0,19.01238669]
[1761904769775,0.7989,3845.1,3845.0,19.35328669]
[1761904770171,1.44370784,3845.1,3845.0,19.68188669]
[1761904774781,0.64480784,3845.1,3845.0,19.81328669]
[1761904774984,1.85444839,3846.0,3845.9,0.5652]
[1761904775178,1.93577942,3846.0,3845.9,0.5652]
[1761904775372,2.49999699,3846.0,3845.9,0.5652]
[1761904775573,1.4444486,3846.0,3845.9,0.5652]
[1761904775770,1.44444442,3846.0,3845.9,0.5652]
[1761904778584,1.44444442,3846.0,3845.9,0.8009]
[1761904779981,0.235,3845.3,3845.2,0.2366]
[1761904780186,1.44444442,3845.3,3845.2,0.4723]
[1761904780684,1.10384442,3845.3,3845.2,0.8009]
[1761904781087,0.64554442,3845.3,3845.2,0.8009]
[1761904781286,0.56421757,3845.3,3845.2,0.8009]
[1761904781581,1.0029921,3845.7,3845.6,0.5637]
[1761904781889,1.08432086,3845.7,3845.6,0.5637]
[1761904782079,1.41592086,3845.7,3845.6,0.5637]
[1761904782487,1.41592086,3845.7,3845.6,0.7968]
[1761904783888,1.08432086,3845.7,3845.6,0.7968]
[1761904784091,0.86452086,3845.7,3845.6,0.7968]
[1761904784987,0.64572086,3845.7,3845.6,0.7968]
[1761904785184,0.64572086,3845.7,3845.6,1.12453]
[1761904785384,0.00182699,3846.2,3846.1,0.7968]
[1761904786286,0.86650496,3846.2,3846.1,0.7968]
[1761904786487,1.08630496,3846.2,3846.1,0.7968]
[1761904786688,1.41790496,3846.2,3846.1,0.7968]
[1761904789291,0.64770496,3846.2,3846.1,0.7968]
[1761904789589,0.86650496,3846.2,3846.1,0.7968]
[1761904790489,0.64770496,3846.2,3846.1,0.7968]
[1761904791290,0.64770054,3846.2,3846.1,0.7968]
[1761904791897,0.56638915,3846.2,3846.1,0.7968]
[1761904793392,0.56638915,3846.2,3846.1,1.12449]
[1761904793593,0.00182699,3846.2,3846.1,1.12449]
[1761904793990,0.56566054,3846.2,3846.1,1.12449]
[1761904794391,0.56566054,3846.2,3846.1,0.7968]
[1761904794992,0.78446054,3846.2,3846.1,0.7968]
[1761904795195,0.22062699,3846.2,3846.1,0.7968]
[1761904795594,0.00182699,3846.2,3846.1,0.7968]
[1761904796685,0.00182699,3846.2,3846.1,1.12449]
[1761904797494,2.16634839,3847.2,3847.1,0.7968]
[1761904797799,1.41355079,3847.2,3847.1,0.7968]
[1761904798500,1.41614784,3847.2,3847.1,0.7968]
[1761904799298,1.41614683,3847.2,3847.1,0.7968]
[1761904800694,1.08454683,3847.2,3847.1,0.7968]
[1761904801204,0.64594683,3847.2,3847.1,0.7968]
[1761904801407,0.56464469,3847.2,3847.1,0.7968]
[1761904803808,0.00259705,3847.2,3847.1,0.7968]
[1761904805415,9.2128,3847.9,3847.8,0.7968]
[1761904805619,9.77448955,3847.9,3847.8,0.7968]
[1761904805811,0.78048955,3847.9,3847.8,0.7968]
[1761904806114,1.33188955,3847.9,3847.8,0.7968]
[1761904806316,0.7702,3847.1,3847.0,0.6141]
[1761904806514,0.77252715,3847.1,3847.0,0.61648191]
[1761904806711,0.77252715,3847.1,3847.0,0.94208191]
[1761904807309,0.77252715,3847.1,3847.0,0.79918191]
[1761904807612,1.4151631,3847.1,3847.0,0.00238191]
[1761904809716,0.2188,3845.6,3845.5,0.6141]
[1761904810016,0.3316,3846.0,3845.5,0.6141]
[1761904810017,0.7702,3846.3,3846.2,0.4712]
[1761904810212,1.33168823,3846.3,3846.2,0.7968]
[1761904810722,1.33168823,3846.3,3846.2,0.56572242]
[1761904811217,1.33168823,3846.3,3846.2,0.00202242]
[1761904811517,1.41300521,3846.3,3846.2,0.00202242]
[1761904812818,1.41300716,3846.3,3846.2,0.00202242]
[1761904813214,1.41300716,3846.3,3846.2,0.54502242]
[1761904813411,1.41300716,3846.3,3846.2,0.78232242]
[1761904816918,1.08140716,3846.3,3846.2,0.78232242]
[1761904817818,0.86160716,3846.3,3846.2,0.78232242]
[1761904818021,0.56148823,3846.3,3846.2,0.78232242]
[1761904818221,0.79342715,3847.1,3847.0,0.57]
[1761904818421,1.43701459,3847.1,3847.0,0.57]
[1761904818615,1.43701459,3847.1,3847.0,0.8051]
[1761904819825,1.43701459,3847.1,3847.0,0.57]
[1761904820419,1.43701049,3847.1,3847.0,0.57]
[1761904820926,1.43701049,3847.1,3847.0,0.9394]
[1761904821431,1.43701049,3847.1,3847.0,0.8051]
[1761904821633,1.43701049,3847.1,3847.0,0.2203]
[1761904821827,0.7911,3846.8,3846.7,0.8051]
[1761904822231,0.4522,3846.8,3846.7,0.8051]
[1761904823431,0.2199,3846.8,3846.7,0.8051]
[1761904823632,0.2199,3846.8,3846.5,0.1343]
[1761904823633,0.22222715,3847.1,3847.0,0.9394]
[1761904823932,0.86577529,3847.1,3847.0,0.9394]
[1761904824129,0.56458155,3847.1,3847.0,0.9394]
[1761904824432,0.00232715,3847.1,3847.0,0.9394]
[1761904828734,0.22222715,3847.1,3847.0,0.9394]
[1761904828934,0.79342715,3847.1,3847.0,0.9394]
[1761904829133,0.79342715,3847.1,3847.0,0.8051]
[1761904830336,0.79342715,3847.1,3847.0,0.9394]
[1761904831139,0.00232715,3847.1,3847.0,0.9394]
[1761904832041,0.79342715,3847.1,3847.0,0.57]
[1761904832240,0.2199,3846.6,3846.5,0.5897]
[1761904832637,0.7911,3846.6,3846.5,0.9394]
[1761904832940,0.4522,3846.6,3846.5,0.9394]
[1761904833243,0.5588,3846.9,3846.8,0.8051]
[1761904833943,0.7911,3846.9,3846.8,0.8051]
[1761904835948,0.7911,3846.6,3846.5,0.4554]
[1761904836241,0.7911,3846.3,3846.2,0.00202242]
[1761904836430,1.43640345,3846.3,3846.2,0.00202242]
[1761904838142,0.2199,3845.4,3845.3,0.8051]
[1761904838843,0.5588,3845.7,3845.6,0.8051]
[1761904839039,0.7911,3845.7,3845.6,0.8079464]
[1761904839245,0.7911,3846.5,3846.4,0.8051]
[1761904839448,1.43628584,3846.5,3846.4,0.8051]
[1761904839639,0.7911,3846.1,3846.0,0.5897]
[1761904840146,0.7911,3846.1,3846.0,0.9394]
[1761904840346,0.4522,3846.1,3846.0,0.9394]
[1761904840643,0.5588,3846.4,3846.3,0.2203]
[1761904840848,1.43607604,3846.4,3846.3,0.8051]
[1761904842545,0.3365,3846.7,3846.0,0.1343]
[1761904842746,0.2256,3846.7,3846.6,0.4406]
[1761904843143,0.5621,3847.0,3846.9,0.4406]
[1761904843344,1.43241981,3847.0,3846.9,0.7903]
[1761904843541,1.55521981,3847.0,3846.9,0.2251]
[1761904843744,0.7873,3846.7,3846.6,0.7903]
[1761904844542,0.4508,3846.7,3846.6,0.7903]
[1761904845448,0.7873,3846.7,3846.6,0.7903]
[1761904846249,0.4508,3846.7,3846.6,0.7903]
[1761904846548,0.1228,3847.0,3846.9,0.7903]
[1761904846549,0.2256,3847.0,3846.9,0.7903]
[1761904846746,0.78962382,3847.0,3846.9,0.7903]
[1761904848253,0.56402382,3847.0,3846.9,0.7903]
[1761904848457,0.3365,3847.6,3847.0,0.9263]
[1761904848644,0.3365,3847.4,3847.0,0.9263]
[1761904849450,0.22792715,3847.1,3847.0,0.9263]
[1761904849653,0.79207369,3847.1,3847.0,0.9263]
[1761904850152,1.35377369,3847.1,3847.0,0.9263]
[1761904852355,1.35377369,3847.1,3847.0,0.7903]
[1761904852550,0.2256,3846.6,3846.5,0.2251]
[1761904852750,0.7873,3846.6,3846.5,0.4406]
[1761904852951,0.4508,3846.6,3846.5,0.5766]
[1761904853150,0.4508,3846.6,3846.5,0.9263]
[1761904853649,0.5621,3846.9,3846.8,0.4406]
[1761904853854,1.35131624,3846.9,3846.8,0.7903]
[1761904857258,1.43261472,3846.9,3846.8,0.7903]
[1761904858661,0.56401624,3846.9,3846.8,0.7903]
[1761904858959,0.00232715,3847.1,3847.0,0.9263]
[1761904859356,0.56722751,3847.1,3847.0,0.9263]
[1761904859660,0.00232715,3847.1,3847.0,0.9263]
[1761904860962,0.22792715,3847.1,3847.0,0.9263]
[1761904861255,0.00232715,3847.1,3847.0,0.9263]
[1761904862948,0.00232715,3847.1,3847.0,1.134842]
[1761904863156,0.00232715,3847.1,3847.0,0.9263]
[1761904868053,0.78962715,3847.1,3847.0,0.9263]
[1761904868253,0.78962715,3847.1,3847.0,0.7903]
[1761904868655,0.78962715,3847.1,3847.0,0.5748]
[1761904869365,0.78962715,3847.1,3847.0,0.7903]
[1761904870164,1.35443479,3847.1,3847.0,0.7903]
[1761904870659,0.2252,3846.7,3846.6,0.7903]
[1761904870966,0.7963,3846.7,3846.6,0.7903]
[1761904872475,1.36149163,3846.7,3846.6,0.7903]
[1761904872761,1.36149163,3846.7,3846.5,0.136]
[1761904872762,0.573,3846.2,3845.8,1.75432188]
[1761904873063,0.8076,3845.7,3845.6,0.2270464]
[1761904873469,0.8076,3845.7,3845.6,0.5772464]
[1761904873766,0.8076,3845.7,3845.6,0.8018464]
[1761904874062,0.3453,3846.4,3846.3,0.799]
[1761904874372,1.45371469,3846.4,3846.3,0.799]
[1761904874860,1.10841469,3846.4,3846.3,0.799]
[1761904875060,0.64611469,3846.4,3846.3,0.799]
[1761904875464,0.88071469,3846.4,3846.3,0.799]
[1761904876368,1.22601469,3846.4,3846.3,0.799]
[1761904876868,1.22578037,3846.4,3846.3,0.799]
[1761904877463,0.46182715,3847.1,3847.0,0.788]
[1761904877663,0.54312895,3847.1,3847.0,0.788]
[1761904877864,1.10767535,3847.1,3847.0,0.788]
[1761904878068,1.43117535,3847.1,3847.0,0.788]
[1761904878771,1.43117535,3847.1,3847.0,0.5593]
[1761904878971,0.5525,3846.8,3846.7,0.5593]
[1761904879172,0.8643018,3846.8,3846.7,0.788]
[1761904879470,1.4288482,3846.8,3846.7,0.788]
[1761904880266,1.4288482,3846.8,3846.7,0.5593]
[1761904880463,1.4288482,3846.8,3846.7,0.788]
[1761904882366,1.1053482,3846.8,3846.7,0.788]
[1761904882564,0.32582715,3847.1,3847.0,0.2314]
[1761904882873,1.10762036,3847.1,3847.0,0.9293]
[1761904883375,0.87862036,3847.1,3847.0,0.9293]
[1761904883669,1.43112036,3847.1,3847.0,0.9293]
[1761904883977,1.43112036,3847.1,3847.0,0.788]
[1761904884567,1.34982421,3847.1,3847.0,0.788]
[1761904885074,0.783,3846.6,3846.5,0.6014]
[1761904885276,0.783,3846.6,3846.5,0.4601]
[1761904885671,0.783,3846.6,3846.5,0.788]
[1761904886571,0.783,3846.6,3846.5,0.5593]
[1761904886778,0.2305,3846.1,3846.0,0.5891]
[1761904886973,0.4595,3846.1,3846.0,0.5891]
[1761904887174,0.4595,3846.1,3846.0,0.917]
[1761904887478,0.2305,3846.1,3846.0,0.917]
[1761904887978,0.783,3846.1,3846.0,0.917]
[1761904890085,0.2305,3845.7,3845.6,0.4629464]
[1761904890376,0.783,3845.7,3845.6,0.0028464]
[1761904891472,0.783,3845.7,3845.6,0.5621464]
[1761904891680,0.783,3845.7,3845.6,0.7908464]
[1761904893376,0.554,3846.1,3846.0,0.2314]
[1761904893581,0.783,3846.1,3846.0,0.788]
[1761904893783,1.34690614,3846.1,3846.0,0.788]
[1761904894281,1.34690614,3846.1,3846.0,0.5593]
[1761904895381,1.42822518,3846.1,3846.0,0.5593]
[1761904896385,0.554,3846.4,3846.3,0.788]
[1761904896570,1.34670591,3846.4,3846.3,0.788]
[1761904897284,0.56370591,3846.4,3846.3,0.788]
[1761904897581,0.783,3847.0,3846.9,0.788]
[1761904897882,1.02331016,3847.0,3846.9,0.788]
[1761904898081,0.56381016,3847.0,3846.9,0.788]
[1761904898388,0.60351,3847.7,3847.0,0.9293]
[1761904898580,0.56639461,3847.1,3847.0,0.9293]
[1761904899087,0.00232715,3847.1,3847.0,1.25691]